fUSD/lending_fUSD_20251211
["ID","MTS","AMOUNT","RATE_DAILY","PERIOD"]
[398250684,1765464643414,-500.0,0.00016999,2]
[398250685,1765464643428,-500.0,0.00016999,2]
[398250686,1765464643443,-500.0,0.00016999,2]
[398250687,1765464643457,-500.0,0.00016999,2]
[398250688,1765464643469,-151.0,0.00016999,2]
[398250689,1765464643481,-151.0,0.00016999,2]
[398250690,1765464643495,-151.0,0.00016999,2]
[398250691,1765464643512,-151.0,0.00016999,2]
[398250692,1765464643525,-151.0,0.00016999,2]
[398250693,1765464643538,-500.0,0.00016999,2]
[398250694,1765464643552,-500.0,0.00016999,2]
[398250695,1765464643565,-500.0,0.00016999,2]
[398250696,1765464643577,-500.0,0.00016999,2]
[398250697,1765464643589,-500.0,0.00016999,2]
[398250698,1765464643601,-151.0,0.00016999,2]
[398250699,1765464643612,-151.0,0.00016999,2]
[398250700,1765464643624,-151.0,0.00016999,2]
[398250701,1765464643637,-151.0,0.00016999,2]
[398250702,1765464643649,-151.0,0.00016999,2]
[398250703,1765464643661,-151.0,0.00016999,2]
[398250704,1765464643673,-151.0,0.00016999,2]
[398250705,1765464643686,-151.0,0.00016999,2]
[398250706,1765464643698,-151.0,0.00016999,2]
[398250707,1765464643711,-151.0,0.00016999,2]
[398250708,1765464643722,-151.0,0.00016999,2]
[398250709,1765464643733,-194.535923,0.00016999,2]
[398250710,1765464643747,-362.679975,0.00016999,2]
[398250711,1765464643761,-362.679975,0.00016999,2]
[398250712,1765464643774,-362.679975,0.00016999,2]
[398250713,1765464643786,-362.679975,0.00016999,2]
[398250714,1765464643799,-151.0,0.00016999,2]
[398250715,1765464643813,-537.785375,0.00016999,2]
[398250716,1765464643825,-537.785375,0.00016999,2]
[398250717,1765464643837,-148.83991748,0.00016999,2]
[398250718,1765464643880,-18.69029431,0.00016999,2]
[398250719,1765464643901,-253.00375993,0.00016999,2]
[398250730,1765464645595,-1072.74413854,0.000169,2]
[398250731,1765464645606,-117.25140328,0.00016999,2]
[398250732,1765464645617,-537.785375,0.00016999,2]
[398250733,1765464645629,-328.26,0.00016999,2]
[398250734,1765464645641,-150.0,0.00017,2]
[398250735,1765464645653,-1048.71598973,0.00017,2]
[398250736,1765464645666,-2980.99026739,0.00017,2]
[398250737,1765464645679,-919.8246306,0.00017,2]
[398250738,1765464645695,-824.04628635,0.00017,2]
[398250739,1765464645798,-8980.0,0.00017,2]
[398250740,1765464645828,-161810.81722383,0.00017,2]
[398250792,1765464787737,200.0,0.00025,120]
[398250793,1765464792021,250.0,0.0001514,2]
[398250795,1765464903047,166.66,0.00015119,2]
[398250797,1765465035576,-166.66,0.00015438,2]
[398250798,1765465155179,-250.0,0.00015457,2]
[398250799,1765465155205,-150.48027205,0.00015476,2]
[398250800,1765465155231,-250.0,0.00015537,2]
[398250801,1765465155261,-1200.0,0.00015575,2]
[398250802,1765465155289,-300.0,0.00015575,2]
[398250803,1765465155314,-687.0,0.00015575,2]
[398250804,1765465155338,-152.31,0.00015576,2]
[398250805,1765465155362,-152.83,0.00015576,2]
[398250806,1765465155386,-150.07,0.00015576,2]
[398250807,1765465155411,-150.29,0.00015576,2]
[398250808,1765465155435,-150.44,0.00015576,2]
[398250809,1765465155463,-152.82,0.00015576,2]
[398250810,1765465155488,-150.08,0.00015576,2]
[398250811,1765465155512,-151.41,0.00015576,2]
[398250812,1765465155537,-152.67,0.00015576,2]
[398250813,1765465155560,-150.83,0.00015576,2]
[398250814,1765465155585,-151.75,0.00015576,2]
[398250815,1765465155608,-152.08,0.00015576,2]
[398250816,1765465155633,-151.31,0.00015576,2]
[398250817,1765465155659,-151.14,0.00015576,2]
[398250818,1765465155684,-152.42,0.00015619,2]
[398250819,1765465155709,-150.85,0.00015619,2]
[398250820,1765465155734,-151.06,0.00015619,2]
[398250821,1765465155758,-3403.57,0.00015717,2]
[398250822,1765465155781,-13924.2,0.00015727,2]
[398250823,1765465155805,-150.32,0.0001575,2]
[398250824,1765465155829,-166.66,0.00015756,2]
[398250825,1765465155853,-327.76056727,0.000159,2]
[398250826,1765465155880,-200.0,0.00015964,2]
[398250827,1765465155906,-386.72,0.00016045,2]
[398250828,1765465155930,-166.66,0.00016074,2]
[398250829,1765465155955,-166.66,0.00016392,2]
[398250830,1765465155979,-1000.0,0.00016706,2]
[398250831,1765465156003,-166.66,0.00016711,2]
[398250832,1765465156026,-300.0,0.0001674,2]
[398250833,1765465156050,-550.0,0.00016748,2]
[398250834,1765465156074,-1000.0,0.00016749,2]
[398250835,1765465156101,-640.26416813,0.00016749,2]
[398250836,1765465156128,-256.40114655,0.00016749,2]
[398250837,1765465156154,-197.72096474,0.00016749,2]
[398250838,1765465156180,-500.0,0.00016749,2]
[398250839,1765465156205,-500.0,0.00016749,2]
[398250840,1765465156236,-500.0,0.00016749,2]
[398250841,1765465156275,-290.69987533,0.00016749,2]
[398250842,1765465156306,-500.0,0.00016749,2]
[398250843,1765465156333,-500.0,0.00016749,2]
[398250844,1765465156358,-500.0,0.00016749,2]
[398250845,1765465156390,-500.0,0.00016749,2]
[398250846,1765465156418,-500.0,0.00016749,2]
[398250847,1765465156446,-500.0,0.00016749,2]
[398250848,1765465156472,-500.0,0.00016749,2]
[398250849,1765465156764,-500.0,0.00016749,2]
[398250850,1765465156794,-564.79370109,0.00016749,2]
[398250851,1765465156820,-500.0,0.00016749,2]
[398250852,1765465156845,-500.0,0.00016749,2]
[398250853,1765465156875,-500.0,0.00016749,2]
[398250854,1765465156901,-500.0,0.00016749,2]
[398250855,1765465156926,-500.0,0.00016749,2]
[398250856,1765465156953,-160.82343171,0.00016749,2]
[398250857,1765465156978,-500.0,0.00016749,2]
[398250858,1765465157007,-155241.1665,0.0001675,2]
[398250859,1765465157032,-1000.0,0.00016769,2]
[398250860,1765465157057,-1000.0,0.00016846,2]
[398250861,1765465157081,-200.0,0.00016864,2]
[398250862,1765465157105,-1270.1554,0.00016886,2]
[398250863,1765465157129,-1613.35371186,0.000169,2]
[398250864,1765465157153,-1574.25338207,0.000169,2]
[398250865,1765465157178,-7487.29025541,0.000169,2]
[398250866,1765465157201,-1000.0,0.000169,2]
[398250867,1765465157225,-700.08437046,0.000169,2]
[398250868,1765465157252,-150.49,0.000169,2]
[398250869,1765465157280,-151.05,0.000169,2]
[398250870,1765465157305,-348.42541693,0.0001695,2]
[398250871,1765465157329,-978.0,0.00016959,2]
[398250872,1765465157354,-284.35065016,0.00016973,2]
[398250873,1765465157378,-250.0,0.00016981,2]
[398250874,1765465157406,-2500.0,0.00016981,2]
[398250875,1765465157430,-2500.0,0.00016981,2]
[398250876,1765465157454,-2500.0,0.00016981,2]
[398250877,1765465157482,-2500.0,0.00016981,2]
[398250878,1765465157506,-2500.0,0.00016981,2]
[398250879,1765465157529,-184.03971987,0.00016981,2]
[398250880,1765465157555,-500.0,0.0001699,2]
[398250881,1765465157581,-500.0,0.0001699,2]
[398250882,1765465157606,-500.0,0.0001699,2]
[398250883,1765465157631,-500.0,0.0001699,2]
[398250884,1765465157656,-500.0,0.0001699,2]
[398250885,1765465157683,-500.0,0.0001699,2]
[398250886,1765465157707,-500.0,0.0001699,2]
[398250887,1765465157732,-500.0,0.0001699,2]
[398250888,1765465157757,-500.0,0.0001699,2]
[398250889,1765465157781,-500.0,0.0001699,2]
[398250890,1765465157805,-500.0,0.0001699,2]
[398250891,1765465157829,-18148.714486,0.00016999,2]
[398250892,1765465157853,-6643.0,0.00017,2]
[398250893,1765465157877,-152.8,0.00017,2]
[398250894,1765465157903,-240691.07198037,0.00017,2]
[398250895,1765465201097,1220.97,0.00024764,120]
[398250896,1765465213136,-300.0,0.0001557,2]
[398250897,1765465213158,-1200.0,0.0001557,2]
[398250898,1765465213178,-250.0,0.00015571,2]
[398250899,1765465213204,-103.0,0.00015571,2]
[398250901,1765465445547,500.0,0.00015438,2]
[398250902,1765465628689,632.0,0.00013699,2]
[398250904,1765465740812,1000.0,0.00015428,3]
[398250905,1765465743156,250.0,0.0001543,2]
[398250906,1765465757872,-250.0,0.00015607,2]
[398250907,1765465757892,-2000.0,0.00015639,2]
[398250908,1765465757913,-468.84,0.00015639,2]
[398250909,1765465757932,-1000.0,0.00015639,2]
[398250910,1765465757952,-299.225,0.00015639,2]
[398250911,1765465757972,-668.94,0.00015817,2]
[398250912,1765465767558,250.0,0.00015803,2]
[398250919,1765465831676,-206.56862882,0.00016074,2]
[398250921,1765465831686,-300.0,0.00016173,2]
[398250923,1765465831695,-1200.0,0.00016173,2]
[398250925,1765465831705,-1611.18343184,0.00016174,2]
[398250941,1765465831847,-1139.81656816,0.00016174,2]
[398250943,1765465831857,-200.0,0.00016174,2]
[398250944,1765465831866,-161.78,0.00016174,2]
[398250946,1765465831875,-150.0,0.000162,2]
[398250948,1765465831885,-150.0,0.000162,2]
[398250950,1765465831894,-110.13978827,0.000162,2]
[398250952,1765465831906,-39.86021173,0.000162,2]
[398250953,1765465831915,-150.0,0.000162,2]
[398250954,1765465831925,-150.0,0.000162,2]
[398250955,1765465831934,-150.0,0.000162,2]
[398250956,1765465831943,-150.0,0.000162,2]
[398250957,1765465831952,-150.0,0.000162,2]
[398250970,1765465832158,-150.00000001,0.000162,2]
[398250971,1765465832168,-165.40022359,0.000162,2]
[398250972,1765465832177,-150.0,0.000162,2]
[398250973,1765465832188,-150.0,0.000162,2]
[398250974,1765465832198,-166.66,0.00016277,2]
[398250975,1765465832208,-150.0,0.00016329,2]
[398250976,1765465832217,-150.0,0.000164,2]
[398250977,1765465832227,-8267.72,0.00016438,2]
[398250978,1765465832236,-150.0,0.00016457,2]
[398250979,1765465832246,-150.0,0.00016457,2]
[398250980,1765465832255,-500.0,0.00016466,2]
[398250981,1765465832266,-469.01,0.000165,2]
[398250982,1765465832275,-150.0,0.000165,2]
[398250983,1765465832284,-150.0,0.000165,2]
[398250984,1765465832294,-1220.97,0.00016509,2]
[398250985,1765465832303,-500.0,0.00016578,3]
[398250986,1765465832312,-150.0,0.00016586,2]
[398250987,1765465832321,-150.0,0.000166,2]
[398250988,1765465832330,-150.0,0.0001665,2]
[398250989,1765465832339,-150.0,0.0001665,2]
[398250990,1765465832349,-1075.56914124,0.0001666,2]
[398250991,1765465832358,-150.0,0.00016714,2]
[398250992,1765465832367,-150.0,0.00016714,2]
[398250993,1765465832376,-150.0,0.000168,2]
[398250994,1765465832385,-150.0,0.000168,2]
[398250995,1765465832394,-150.0,0.000168,2]
[398250996,1765465832403,-7797.35331558,0.000168,2]
[398250997,1765465832413,-150.0,0.00016843,2]
[398250998,1765465832422,-200.0,0.00016864,2]
[398250999,1765465832431,-300.0,0.0001689,2]
[398251000,1765465832441,-33985.04366515,0.00016892,2]
[398251001,1765465832493,-315.0,0.00016892,2]
[398251002,1765465832508,-37148.80758775,0.00016892,2]
[398251008,1765465837743,-259.00000004,0.00016848,2]
[398251009,1765465837794,-1118.47170928,0.00016848,2]
[398251010,1765465837803,-10999.7969538,0.00016892,2]
[398251011,1765465837813,-448.18491769,0.00016899,2]
[398251012,1765465837822,-179.48080259,0.00016899,2]
[398251013,1765465837831,-500.0,0.00016899,2]
[398251014,1765465837840,-284.9770779,0.00016899,2]
[398251015,1765465837849,-500.0,0.00016899,2]
[398251016,1765465837859,-573.81107607,0.00016899,2]
[398251017,1765465837868,-500.0,0.00016899,2]
[398251018,1765465837877,-160.82343171,0.00016899,2]
[398251019,1765465837887,-2419.536,0.00016899,2]
[398251020,1765465837896,-172.697,0.00016899,2]
[398251021,1765465837905,-500.0,0.00016899,2]
[398251022,1765465837914,-160.82343171,0.00016899,2]
[398251023,1765465837924,-500.0,0.00016899,2]
[398251024,1765465837933,-500.0,0.00016899,2]
[398251025,1765465837942,-500.0,0.00016899,2]
[398251026,1765465837952,-160.82343171,0.00016899,2]
[398251027,1765465837961,-500.0,0.00016899,2]
[398251028,1765465837970,-500.0,0.00016899,2]
[398251029,1765465837980,-160.82343171,0.00016899,2]
[398251030,1765465837989,-500.0,0.00016899,2]
[398251031,1765465837998,-500.0,0.00016899,2]
[398251032,1765465838007,-160.82343171,0.00016899,2]
[398251033,1765465838018,-500.0,0.00016899,2]
[398251034,1765465838027,-500.0,0.00016899,2]
[398251036,1765465838036,-160.82343171,0.00016899,2]
[398251038,1765465838046,-500.0,0.00016899,2]
[398251039,1765465838055,-59624.48573569,0.000169,2]
[398251042,1765465838066,-79630.7423695,0.000169,2]
[398251044,1765465838077,-8800.0,0.000169,2]
[398251046,1765465838092,-32951.62125466,0.000169,2]
[398251048,1765465838105,-68993.15064015,0.000169,2]
[398251050,1765465838115,-1000.0,0.000169,2]
[398251052,1765465838124,-8351.09297403,0.000169,2]
[398251054,1765465838133,-166.66,0.00016949,2]
[398251056,1765465838142,-150.0,0.00016971,2]
[398251058,1765465838152,-150.0,0.00016971,2]
[398251060,1765465838161,-500.0,0.0001699,2]
[398251062,1765465838170,-500.0,0.0001699,2]
[398251065,1765465838179,-500.0,0.0001699,2]
[398251068,1765465838189,-500.0,0.0001699,2]
[398251071,1765465838199,-500.0,0.0001699,2]
[398251074,1765465838209,-500.0,0.0001699,2]
[398251076,1765465838218,-500.0,0.0001699,2]
[398251078,1765465838227,-500.0,0.0001699,2]
[398251080,1765465838236,-500.0,0.0001699,2]
[398251082,1765465838245,-500.0,0.0001699,2]
[398251084,1765465838254,-500.0,0.0001699,2]
[398251086,1765465838264,-1000.0,0.00016999,2]
[398251088,1765465838275,-5098.0,0.00017,2]
[398251090,1765465838284,-150.0,0.00017,2]
[398251092,1765465838293,-181050.74316248,0.00017,2]
[398251094,1765465838305,-10835.01730354,0.00017,2]
[398251095,1765465838316,-764.2244745,0.00017,2]
[398251097,1765465839819,-688.2296785,0.00017,2]
[398251101,1765465839892,-3278.11148217,0.00017,2]
[398251102,1765465839903,-109015.8277554,0.00017,2]
[398251103,1765465839995,-2970.00000004,0.00017,2]
[398251104,1765465840580,-742.21945211,0.00017,2]
[398251105,1765465840591,-984.97445486,0.00017,2]
[398251122,1765465842896,-314.54020013,0.00017,2]
[398251123,1765465842908,-7841.54505489,0.00017,2]
[398251124,1765465842925,-1130.776072,0.00017,2]
[398251125,1765465842955,-9063.14310798,0.00017,2]
[398251126,1765465842983,-129955.51725073,0.00017,2]
[398251127,1765465842992,-160.0,0.00017,2]
[398251128,1765465843001,-24967.28438905,0.00017,2]
[398251129,1765465843011,-155648.40872953,0.00017,2]
[398251130,1765465843022,-998.96237406,0.00017,2]
[398251133,1765465845760,-2193.465,0.00017,2]
[398251137,1765465845814,-596.427642,0.00017,2]
[398251146,1765465847081,-1118.4173,0.00017,2]
[398251147,1765465847092,-1580.11308,0.00017,2]
[398251148,1765465847103,-642.87191274,0.00017,2]
[398251149,1765465847114,-10660.65671869,0.00017,2]
[398251150,1765465847130,-8943.8,0.00017,2]
[398251374,1765466535230,262.995,0.00016,2]
[398251395,1765466704483,250.0,0.0001534,2]
[398251409,1765466754517,9750.01,0.000129,2]
[398251410,1765466754545,10000.01,0.000129,2]
[398251411,1765466754572,10000.01,0.000129,2]
[398251412,1765466754598,10000.01,0.000129,2]
[398251413,1765466754624,10000.01,0.000129,2]
[398251414,1765466754650,10000.01,0.000129,2]
[398251415,1765466754686,10000.01,0.000129,2]
[398251416,1765466754717,10000.01,0.000129,2]
[398251417,1765466754744,10000.01,0.000129,2]
[398251418,1765466754773,8903.22270742,0.000129,2]
[398251510,1765466901246,259.09404676,0.00015,2]
[398251522,1765466919299,837.69324582,0.00015,2]
[398251523,1765466919326,3881.97938136,0.00015,2]
[398251525,1765466923812,160.29,0.0001506,2]
[398251558,1765467031964,-812.94,0.00015728,2]
[398251559,1765467031978,-51.14449454,0.00015999,2]
[398251560,1765467031992,-248.85550546,0.00015999,2]
[398251561,1765467032002,-169.39302646,0.00015999,2]
[398251562,1765467032015,-1030.60697354,0.00015999,2]
[398251563,1765467032024,-237.005,0.00016,2]
[398251564,1765467032034,-373.88801846,0.00016,4]
[398251565,1765467032045,-12824.00568241,0.00016,4]
[398251566,1765467032055,-256.65,0.00016091,2]
[398251567,1765467032065,-291.4407,0.00016091,2]
[398251568,1765467032075,-617.0739278,0.00016132,2]
[398251569,1765467032091,-582.4560722,0.00016132,2]
[398251570,1765467032100,-150.0,0.000162,2]
[398251571,1765467032110,-150.0,0.000162,2]
[398251572,1765467032120,-150.0,0.000162,2]
[398251573,1765467032130,-150.0,0.000162,2]
[398251574,1765467032140,-150.0,0.000162,2]
[398251575,1765467032150,-150.0,0.000162,2]
[398251576,1765467032160,-150.0,0.000162,2]
[398251577,1765467032173,-222.86407513,0.00016232,2]
[398251578,1765467032183,-150.0,0.00016364,2]
[398251579,1765467032192,-444.19126097,0.00016418,2]
[398251580,1765467032202,-150.0,0.00016527,2]
[398251581,1765467032213,-150.0,0.0001656,2]
[398251582,1765467032222,-5680.42,0.00016574,2]
[398251583,1765467032232,-209.0,0.00016574,2]
[398251612,1765467032498,-385.78,0.00016579,2]
[398251614,1765467032508,-926.12013209,0.00016587,2]
[398251616,1765467032518,-150.0,0.00016593,2]
[398251618,1765467032528,-500.0,0.00016596,2]
[398251620,1765467032538,-1801.0,0.000166,2]
[398251622,1765467032547,-1323.99070524,0.00016639,2]
[398251624,1765467032557,-270.0,0.00016639,2]
[398251626,1765467032567,-150.0,0.0001665,2]
[398251628,1765467032576,-717.04609416,0.0001666,2]
[398251630,1765467032585,-150.0,0.00016691,2]
[398251632,1765467032594,-436.02605526,0.00016699,2]
[398251634,1765467032604,-550.0,0.00016699,2]
[398251636,1765467032614,-9192.96593102,0.000167,2]
[398251638,1765467032624,-15237.9225815,0.000167,2]
[398251640,1765467032636,-899.86519061,0.000167,2]
[398251642,1765467032647,-1195.98280455,0.000167,2]
[398251645,1765467032659,-641.28142672,0.000167,2]
[398251647,1765467032669,-7211.0,0.000167,2]
[398251649,1765467032680,-522.04790989,0.000167,2]
[398251652,1765467032696,-318.10448703,0.000167,2]
[398251655,1765467032715,-296.16530484,0.000167,2]
[398252170,1765467037931,-17715.38572527,0.000167,2]
[398252172,1765467037943,-11911.37200405,0.000167,2]
[398252181,1765467038030,-435.68171857,0.000167,2]
[398252184,1765467038047,-10892.00591625,0.000167,2]
[398252186,1765467038059,-2890.27613519,0.000167,2]
[398252385,1765467040017,-19057.79879553,0.000167,2]
[398252388,1765467040027,-168.27,0.00016712,2]
[398252391,1765467040036,-151.0,0.00016754,2]
[398252394,1765467040047,-693.3919763,0.00016754,2]
[398252397,1765467040058,-300.0,0.00016754,2]
[398252400,1765467040067,-74.80385207,0.00016789,2]
[398252403,1765467040078,-97.89488851,0.00016789,2]
[398252406,1765467040088,-738.44921922,0.00016789,2]
[398252409,1765467040099,-816.96155253,0.00016789,2]
[398252413,1765467040110,-265.36149979,0.00016789,2]
[398252416,1765467040121,-114.85672846,0.00016789,2]
[398252419,1765467040131,-338.79127154,0.0001679,2]
[398252422,1765467040142,-161.20872846,0.0001679,2]
[398252425,1765467040151,-192.6,0.0001679,2]
[398252428,1765467040160,-200.0,0.0001679,2]
[398252431,1765467040169,-149.70127104,0.0001679,2]
[398252442,1765467040242,-1.29872896,0.0001679,2]
[398252445,1765467040253,-500.0,0.0001679,2]
[398252448,1765467040262,-500.0,0.0001679,2]
[398252451,1765467040272,-500.0,0.0001679,2]
[398252454,1765467040283,-500.0,0.0001679,2]
[398252457,1765467040292,-500.0,0.0001679,2]
[398252458,1765467040302,-500.0,0.0001679,2]
[398252460,1765467040311,-500.0,0.0001679,2]
[398252462,1765467040320,-500.0,0.0001679,2]
[398252464,1765467040329,-500.0,0.0001679,2]
[398252466,1765467040338,-500.0,0.0001679,2]
[398252468,1765467040348,-500.0,0.0001679,2]
[398252470,1765467040357,-500.0,0.0001679,2]
[398252472,1765467040366,-500.0,0.0001679,2]
[398252474,1765467040375,-500.0,0.0001679,2]
[398252476,1765467040384,-1000.0,0.0001679,2]
[398252478,1765467040394,-1000.0,0.0001679,2]
[398252480,1765467040404,-1000.0,0.0001679,2]
[398252482,1765467040413,-500.0,0.0001679,2]
[398252484,1765467040423,-500.0,0.0001679,2]
[398252486,1765467040432,-500.0,0.0001679,2]
[398252487,1765467040441,-151.0,0.0001679,2]
[398252489,1765467040451,-151.0,0.0001679,2]
[398252490,1765467040460,-151.0,0.0001679,2]
[398252492,1765467040469,-151.0,0.0001679,2]
[398252494,1765467040478,-151.0,0.0001679,2]
[398252496,1765467040488,-151.0,0.0001679,2]
[398252497,1765467040499,-200.0,0.0001679,2]
[398252499,1765467040507,-250.0,0.0001679,2]
[398252501,1765467040517,-151.0,0.0001679,2]
[398252502,1765467040525,-151.0,0.0001679,2]
[398252504,1765467040534,-250.0,0.0001679,2]
[398252506,1765467040543,-151.0,0.0001679,2]
[398252507,1765467040551,-250.0,0.0001679,2]
[398252508,1765467040560,-250.0,0.0001679,2]
[398252510,1765467040569,-151.0,0.0001679,2]
[398252511,1765467040579,-250.0,0.0001679,2]
[398252513,1765467040588,-151.0,0.0001679,2]
[398252515,1765467040597,-250.0,0.0001679,2]
[398252516,1765467040606,-500.0,0.0001679,2]
[398252518,1765467040615,-545.1605607,0.0001679,2]
[398252520,1765467040624,-897.25,0.0001679,2]
[398252521,1765467040633,-1000.0,0.00016797,2]
[398252523,1765467040641,-500.0,0.00016797,2]
[398252524,1765467040651,-284.9770779,0.00016797,2]
[398252526,1765467040659,-500.0,0.00016797,2]
[398252528,1765467040668,-500.0,0.00016797,2]
[398252530,1765467040677,-500.0,0.00016797,2]
[398252531,1765467040686,-500.0,0.00016797,2]
[398252533,1765467040695,-500.0,0.00016797,2]
[398252534,1765467040704,-500.0,0.00016797,2]
[398252536,1765467040713,-500.0,0.00016797,2]
[398252537,1765467040722,-500.0,0.00016797,2]
[398252539,1765467040731,-500.0,0.00016797,2]
[398252541,1765467040739,-500.0,0.00016797,2]
[398252542,1765467040748,-500.0,0.00016797,2]
[398252544,1765467040757,-500.0,0.00016797,2]
[398252547,1765467040766,-500.0,0.00016797,2]
[398252549,1765467040774,-500.0,0.00016797,2]
[398252550,1765467040783,-500.0,0.00016797,2]
[398252552,1765467040792,-500.0,0.00016797,2]
[398252554,1765467040802,-500.0,0.00016797,2]
[398252556,1765467040811,-429.67943519,0.00016797,2]
[398252558,1765467040820,-500.0,0.00016797,2]
[398252559,1765467040828,-500.0,0.00016797,2]
[398252561,1765467040837,-500.0,0.00016797,2]
[398252563,1765467040846,-500.0,0.00016797,2]
[398252565,1765467040855,-500.0,0.00016797,2]
[398252566,1765467040864,-500.0,0.00016797,2]
[398252568,1765467040873,-500.0,0.00016797,2]
[398252570,1765467040882,-500.0,0.00016797,2]
[398252571,1765467040891,-500.0,0.00016797,2]
[398252573,1765467040900,-500.0,0.00016797,2]
[398252575,1765467040908,-500.0,0.00016797,2]
[398252576,1765467040917,-500.0,0.00016799,2]
[398252578,1765467040926,-500.0,0.00016799,2]
[398252580,1765467040935,-263.6676536,0.00016799,2]
[398252582,1765467040947,-215.95258143,0.00016799,2]
[398252584,1765467040964,-280.14849583,0.00016799,2]
[398252586,1765467040975,-7128.3357,0.000168,2]
[398252588,1765467040985,-150.0,0.000168,2]
[398252589,1765467040995,-150.0,0.000168,2]
[398252591,1765467041005,-150.0,0.000168,2]
[398252593,1765467041014,-9192.96593102,0.00016841,2]
[398252594,1765467041023,-150.0,0.00016855,2]
[398252596,1765467041033,-200.0,0.00016864,2]
[398252598,1765467041042,-1562.20102852,0.0001689,2]
[398252600,1765467041051,-151.0,0.00016897,2]
[398252602,1765467041061,-500.0,0.00016899,2]
[398252604,1765467041070,-500.0,0.00016899,2]
[398252605,1765467041079,-500.0,0.00016899,2]
[398252607,1765467041089,-500.0,0.00016899,2]
[398252609,1765467041098,-374.59633969,0.00016899,2]
[398252610,1765467041107,-500.0,0.00016899,2]
[398252612,1765467041117,-11038.50205203,0.000169,2]
[398252614,1765467041126,-150.0,0.0001692,2]
[398252616,1765467041135,-247.05422599,0.00016931,2]
[398252618,1765467041144,-2623.299815,0.00016972,2]
[398252620,1765467041153,-3891.1382042,0.00016972,2]
[398252621,1765467041163,-8641.407868,0.00016972,2]
[398252623,1765467041172,-150.0,0.00016973,2]
[398252625,1765467041181,-287.24719378,0.00016973,2]
[398252627,1765467041190,-500.0,0.00016973,2]
[398252628,1765467041200,-150.0,0.00016973,2]
[398252630,1765467041209,-500.0,0.00016973,2]
[398252632,1765467041219,-150.0,0.00016973,2]
[398252633,1765467041228,-150.0,0.00016973,2]
[398252635,1765467041240,-206.96660006,0.00016973,2]
[398252637,1765467041253,-500.0,0.00016973,2]
[398252639,1765467041263,-157.66220658,0.00016973,2]
[398252640,1765467041271,-500.0,0.00016973,2]
[398252642,1765467041281,-209.36193513,0.00016973,2]
[398252644,1765467041290,-150.59346449,0.00016973,2]
[398252645,1765467041300,-150.0,0.00016973,2]
[398252647,1765467041310,-201.5998615,0.00016973,2]
[398252649,1765467041319,-150.0,0.00016973,2]
[398252651,1765467041328,-500.0,0.00016973,2]
[398252652,1765467041336,-500.0,0.00016973,2]
[398252654,1765467041345,-150.0,0.00016973,2]
[398252655,1765467041355,-150.0,0.00016973,2]
[398252657,1765467041365,-248.06647648,0.00016973,2]
[398252659,1765467041374,-500.0,0.00016973,2]
[398252660,1765467041383,-150.0,0.00016973,2]
[398252661,1765467041391,-150.0,0.00016973,2]
[398252662,1765467041400,-500.0,0.00016973,2]